[Event "*** Titled Tuesday Blitz"]
[Site "Chess.com"]
[Date "2021.02.16"]
[Round "10"]
[White "Kapibara_Warri0r"]
[Black "harlem4brew"]
[Result "0-1"]
[WhiteElo "2179"]
[BlackElo "2313"]
[TimeControl "180+1"]
[EndTime "11:57:20 PST"]
[Termination "harlem4brew won by resignation"]

1. d4 {[%clk 0:03:00.9]} 1... e6 {[%clk 0:02:59.6]} 2. c4 {[%clk 0:03:00.3]}
2... d5 {[%clk 0:02:59.8]} 3. Nc3 {[%clk 0:02:59.8]} 3... Nf6 {[%clk 0:02:59]}
4. cxd5 {[%clk 0:03:00]} 4... exd5 {[%clk 0:02:58.6]} 5. Bg5 {[%clk 0:02:58.8]}
5... c6 {[%clk 0:02:58.4]} 6. Qc2 {[%clk 0:02:57.9]} 6... Be7 {[%clk 0:02:58.1]}
7. e3 {[%clk 0:02:57.5]} 7... h6 {[%clk 0:02:58]} 8. Bh4 {[%clk 0:02:56.3]} 8...
O-O {[%clk 0:02:58]} 9. Nf3 {[%clk 0:02:56.1]} 9... Be6 {[%clk 0:02:55.5]} 10.
Bd3 {[%clk 0:02:56.1]} 10... Nbd7 {[%clk 0:02:54.4]} 11. O-O {[%clk 0:02:56.1]}
11... Rc8 {[%clk 0:02:51.8]} 12. e4 {[%clk 0:02:43]} 12... dxe4 {[%clk
0:02:49.9]} 13. Nxe4 {[%clk 0:02:40.1]} 13... Nxe4 {[%clk 0:02:49.5]} 14. Bxe7
{[%clk 0:02:40.7]} 14... Qxe7 {[%clk 0:02:50.4]} 15. Bxe4 {[%clk 0:02:41.6]}
15... Nf6 {[%clk 0:02:49.7]} 16. Bf5 {[%clk 0:02:28.4]} 16... Bxf5 {[%clk
0:02:41.6]} 17. Qxf5 {[%clk 0:02:29.3]} 17... Qd7 {[%clk 0:02:39.3]} 18. Qa5
{[%clk 0:02:12.9]} 18... b6 {[%clk 0:02:38.2]} 19. Qa3 {[%clk 0:02:12.7]} 19...
Rfe8 {[%clk 0:02:31.8]} 20. Rfe1 {[%clk 0:02:12.8]} 20... a5 {[%clk 0:02:10.1]}
21. Rad1 {[%clk 0:02:02.4]} 21... Rcd8 {[%clk 0:02:03.4]} 22. h3 {[%clk
0:01:58.6]} 22... Qd5 {[%clk 0:01:56.8]} 23. b3 {[%clk 0:01:51.7]} 23... Ne4
{[%clk 0:01:55.7]} 24. Qc1 {[%clk 0:01:50.4]} 24... Nd6 {[%clk 0:01:53]} 25. Qf4
{[%clk 0:01:47.7]} 25... Re4 {[%clk 0:01:49.7]} 26. Rxe4 {[%clk 0:01:39.6]}
26... Qxe4 {[%clk 0:01:47.7]} 27. Qe5 {[%clk 0:01:31.4]} 27... Qg6 {[%clk
0:01:41.6]} 28. Qf4 {[%clk 0:01:23.8]} 28... Nb5 {[%clk 0:01:37.3]} 29. Ne5
{[%clk 0:01:16.2]} 29... Qe6 {[%clk 0:01:34.5]} 30. Nc4 {[%clk 0:01:09.4]} 30...
Nc3 {[%clk 0:01:33.1]} 31. Qc7 {[%clk 0:00:58.5]} 31... Rc8 {[%clk 0:01:29.1]}
32. Qd6 {[%clk 0:00:54.4]} 32... Nxd1 {[%clk 0:01:27.5]} 0-1

[Event "*** Titled Tuesday Blitz"]
[Site "Chess.com"]
[Date "2021.02.16"]
[Round "10"]
[White "barriochess"]
[Black "zmeeed67"]
[Result "0-1"]
[WhiteElo "2427"]
[BlackElo "2335"]
[TimeControl "180+1"]
[EndTime "11:57:22 PST"]
[Termination "zmeeed67 won by resignation"]

1. d4 {[%clk 0:03:00.9]} 1... Nc6 {[%clk 0:03:00.4]} 2. Nf3 {[%clk 0:02:59.9]}
2... d6 {[%clk 0:03:00.5]} 3. e4 {[%clk 0:02:57.1]} 3... Nf6 {[%clk 0:03:00.2]}
4. Nc3 {[%clk 0:02:56.6]} 4... Bg4 {[%clk 0:03:00.1]} 5. Be2 {[%clk 0:02:56.4]}
5... e5 {[%clk 0:02:59.9]} 6. d5 {[%clk 0:02:50.3]} 6... Ne7 {[%clk 0:02:59.6]}
7. Ng1 {[%clk 0:02:46.1]} 7... Bd7 {[%clk 0:02:59.1]} 8. g4 {[%clk 0:02:37.2]}
8... h6 {[%clk 0:02:56]} 9. Be3 {[%clk 0:02:33.7]} 9... Ng6 {[%clk 0:02:55.9]}
10. Nh3 {[%clk 0:02:24]} 10... Be7 {[%clk 0:02:51.1]} 11. f3 {[%clk 0:02:20]}
11... Nh7 {[%clk 0:02:39.3]} 12. Qd2 {[%clk 0:02:18.5]} 12... Bh4+ {[%clk
0:02:38.5]} 13. Nf2 {[%clk 0:02:17.9]} 13... Bg5 {[%clk 0:02:38.3]} 14. O-O
{[%clk 0:02:15.2]} 14... Bxe3 {[%clk 0:02:37]} 15. Qxe3 {[%clk 0:02:15]} 15...
Nf4 {[%clk 0:02:35.3]} 16. Nd3 {[%clk 0:02:13.7]} 16... g5 {[%clk 0:02:31]} 17.
Nxf4 {[%clk 0:02:13.1]} 17... gxf4 {[%clk 0:02:31]} 18. Qd2 {[%clk 0:02:09.8]}
18... h5 {[%clk 0:02:31.2]} 19. gxh5 {[%clk 0:02:08.6]} 19... Qg5+ {[%clk
0:02:29.3]} 20. Kh1 {[%clk 0:02:08.7]} 20... Qxh5 {[%clk 0:02:29.5]} 21. Bb5
{[%clk 0:02:06.2]} 21... Ng5 {[%clk 0:02:24.4]} 22. Bxd7+ {[%clk 0:02:05.8]}
22... Kxd7 {[%clk 0:02:24.1]} 23. Qg2 {[%clk 0:02:06.2]} 23... Rag8 {[%clk
0:02:21]} 24. Qg4+ {[%clk 0:01:59.6]} 24... Qxg4 {[%clk 0:02:20]} 25. fxg4
{[%clk 0:02:00.5]} 25... Nh3 {[%clk 0:02:07.5]} 26. Rad1 {[%clk 0:01:42.7]}
26... Rxg4 {[%clk 0:02:04]} 27. Rd2 {[%clk 0:01:43.6]} 27... Rhg8 {[%clk
0:01:59.5]} 28. Ne2 {[%clk 0:01:24.9]} 28... Ng5 {[%clk 0:01:25.4]} 29. Nc3
{[%clk 0:01:22.5]} 29... Nh3 {[%clk 0:01:02.5]} 30. Ne2 {[%clk 0:01:21.1]} 30...
Rg2 {[%clk 0:01:02.1]} 0-1

[Event "*** Titled Tuesday Blitz"]
[Site "Chess.com"]
[Date "2021.02.16"]
[Round "10"]
[White "Chopper1905"]
[Black "1977Ivan"]
[Result "0-1"]
[WhiteElo "2923"]
[BlackElo "2758"]
[TimeControl "180+1"]
[EndTime "11:57:27 PST"]
[Termination "1977Ivan won by resignation"]

1. d4 {[%clk 0:03:00.9]} 1... Nf6 {[%clk 0:02:59.2]} 2. Nf3 {[%clk 0:03:01.1]}
2... d6 {[%clk 0:02:59.2]} 3. c4 {[%clk 0:02:59.8]} 3... c6 {[%clk 0:02:58]} 4.
Nc3 {[%clk 0:03:00]} 4... Bg4 {[%clk 0:02:57.8]} 5. g3 {[%clk 0:02:59.5]} 5...
Bxf3 {[%clk 0:02:57.6]} 6. exf3 {[%clk 0:03:00.4]} 6... d5 {[%clk 0:02:58.2]} 7.
Qb3 {[%clk 0:02:57.3]} 7... Qd7 {[%clk 0:02:57.4]} 8. Be3 {[%clk 0:02:46.5]}
8... e6 {[%clk 0:02:57]} 9. c5 {[%clk 0:02:42]} 9... Be7 {[%clk 0:02:55.5]} 10.
h4 {[%clk 0:02:39.9]} 10... O-O {[%clk 0:02:42.7]} 11. Bh3 {[%clk 0:02:40.1]}
11... b6 {[%clk 0:02:39.2]} 12. cxb6 {[%clk 0:02:10.5]} 12... axb6 {[%clk
0:02:40.1]} 13. O-O {[%clk 0:02:10.5]} 13... c5 {[%clk 0:02:33.6]} 14. a4 {[%clk
0:02:06.7]} 14... Nc6 {[%clk 0:02:33.3]} 15. Nb5 {[%clk 0:02:00.4]} 15... Na5
{[%clk 0:02:24.7]} 16. Qc2 {[%clk 0:01:56.2]} 16... c4 {[%clk 0:02:24.6]} 17.
Nc3 {[%clk 0:01:46.4]} 17... Nc6 {[%clk 0:02:18]} 18. Rad1 {[%clk 0:01:18.1]}
18... Bb4 {[%clk 0:02:07]} 19. f4 {[%clk 0:01:14.6]} 19... Bxc3 {[%clk 0:02:03]}
20. bxc3 {[%clk 0:01:15.5]} 20... Ne4 {[%clk 0:02:03.2]} 21. f5 {[%clk
0:01:15.9]} 21... exf5 {[%clk 0:02:01]} 22. Bf4 {[%clk 0:01:16.5]} 22... Ne7
{[%clk 0:01:50.5]} 23. Rb1 {[%clk 0:01:16.4]} 23... Qxa4 {[%clk 0:01:39.1]} 24.
Qxa4 {[%clk 0:01:08.7]} 24... Rxa4 {[%clk 0:01:40]} 25. Rxb6 {[%clk 0:01:09.5]}
25... Nxc3 {[%clk 0:01:40]} 26. Bd6 {[%clk 0:01:07.3]} 26... Nc8 {[%clk
0:01:38.7]} 27. Bxf8 {[%clk 0:01:07.4]} 27... Nxb6 {[%clk 0:01:38.2]} 28. Bc5
{[%clk 0:01:04.2]} 28... Nd7 {[%clk 0:01:31.1]} 29. Re1 {[%clk 0:00:55.7]} 29...
g6 {[%clk 0:01:27.5]} 30. Re8+ {[%clk 0:00:47]} 30... Kg7 {[%clk 0:01:26.9]} 31.
Rd8 {[%clk 0:00:47.6]} 31... Nxc5 {[%clk 0:01:25.5]} 32. dxc5 {[%clk 0:00:48.5]}
32... Ra5 {[%clk 0:01:25.8]} 33. Rc8 {[%clk 0:00:42.7]} 33... Ne4 {[%clk
0:01:19.7]} 0-1

[Event "*** Titled Tuesday Blitz"]
[Site "Chess.com"]
[Date "2021.02.16"]
[Round "10"]
[White "PSvidler"]
[Black "Frolyanov_D"]
[Result "1/2-1/2"]
[WhiteElo "2911"]
[BlackElo "2687"]
[TimeControl "180+1"]
[EndTime "11:57:30 PST"]
[Termination "Game drawn by agreement"]

1. e4 {[%clk 0:03:00.9]} 1... c5 {[%clk 0:02:59.8]} 2. Nf3 {[%clk 0:03:00.5]}
2... e6 {[%clk 0:03:00]} 3. d4 {[%clk 0:02:59.8]} 3... cxd4 {[%clk 0:03:00.9]}
4. Nxd4 {[%clk 0:03:00.3]} 4... a6 {[%clk 0:03:00.6]} 5. Bd3 {[%clk 0:02:55.6]}
5... g6 {[%clk 0:02:58.9]} 6. O-O {[%clk 0:02:54.5]} 6... Bg7 {[%clk 0:02:57.2]}
7. Be3 {[%clk 0:02:52.5]} 7... Ne7 {[%clk 0:02:56.2]} 8. Nd2 {[%clk 0:02:51.2]}
8... d5 {[%clk 0:02:49.5]} 9. c3 {[%clk 0:02:34.9]} 9... O-O {[%clk 0:02:48.2]}
10. N2f3 {[%clk 0:02:21.9]} 10... e5 {[%clk 0:02:44.3]} 11. Nb3 {[%clk
0:02:20.7]} 11... dxe4 {[%clk 0:02:43.7]} 12. Bxe4 {[%clk 0:02:20.6]} 12... Qxd1
{[%clk 0:02:34.1]} 13. Rfxd1 {[%clk 0:02:19.8]} 13... f5 {[%clk 0:02:33.1]} 14.
Bc2 {[%clk 0:02:18.5]} 14... e4 {[%clk 0:02:23.2]} 15. Nfd4 {[%clk 0:02:09]}
15... h6 {[%clk 0:02:08.1]} 16. Nc5 {[%clk 0:02:04.2]} 16... Bxd4 {[%clk
0:01:19.7]} 17. cxd4 {[%clk 0:01:54.8]} 17... b6 {[%clk 0:01:13.5]} 18. Bb3+
{[%clk 0:01:35.8]} 18... Kh7 {[%clk 0:01:13.5]} 19. Ne6 {[%clk 0:01:35.7]} 19...
Bxe6 {[%clk 0:01:11.5]} 20. Bxe6 {[%clk 0:01:36.6]} 20... f4 {[%clk 0:01:06]}
21. Bc1 {[%clk 0:01:29]} 21... Nbc6 {[%clk 0:01:06]} 22. d5 {[%clk 0:01:28.1]}
22... Ne5 {[%clk 0:01:03.8]} 23. d6 {[%clk 0:01:25.7]} 23... Nf5 {[%clk
0:00:55.7]} 24. Be3 {[%clk 0:01:19.1]} 24... Nh4 {[%clk 0:00:44]} 25. Bd4 {[%clk
0:01:12.3]} 25... Nd3 {[%clk 0:00:35.1]} 1/2-1/2

[Event "*** Titled Tuesday Blitz"]
[Site "Chess.com"]
[Date "2021.02.16"]
[Round "10"]
[White "pavelalexandru07"]
[Black "Kale36"]
[Result "0-1"]
[WhiteElo "2312"]
[BlackElo "2238"]
[TimeControl "180+1"]
[EndTime "11:57:52 PST"]
[Termination "Kale36 won by resignation"]

1. e4 {[%clk 0:02:16.8]} 1... g6 {[%clk 0:03:00.9]} 2. d4 {[%clk 0:02:16.5]}
2... Bg7 {[%clk 0:03:01]} 3. c4 {[%clk 0:02:17.1]} 3... d6 {[%clk 0:02:57.4]} 4.
Nc3 {[%clk 0:02:17.5]} 4... a6 {[%clk 0:02:47]} 5. Be3 {[%clk 0:02:14.4]} 5...
b6 {[%clk 0:02:35.9]} 6. Be2 {[%clk 0:02:13]} 6... Bb7 {[%clk 0:02:35.8]} 7. Bf3
{[%clk 0:01:59]} 7... Nd7 {[%clk 0:02:35.3]} 8. Nge2 {[%clk 0:01:52]} 8... e5
{[%clk 0:02:34.6]} 9. O-O {[%clk 0:01:43.8]} 9... Ne7 {[%clk 0:02:33.8]} 10. Re1
{[%clk 0:01:42.6]} 10... O-O {[%clk 0:02:33.3]} 11. d5 {[%clk 0:01:26.2]} 11...
f5 {[%clk 0:02:30.8]} 12. Nc1 {[%clk 0:01:22.1]} 12... f4 {[%clk 0:02:28]} 13.
Bd2 {[%clk 0:01:20.8]} 13... g5 {[%clk 0:02:28.1]} 14. Nd3 {[%clk 0:01:10.3]}
14... Nf6 {[%clk 0:02:27.7]} 15. b4 {[%clk 0:01:05.7]} 15... Bc8 {[%clk
0:02:25.7]} 16. Be2 {[%clk 0:01:01.5]} 16... g4 {[%clk 0:02:23.6]} 17. f3 {[%clk
0:00:59.6]} 17... h5 {[%clk 0:02:16.9]} 18. c5 {[%clk 0:00:57.5]} 18... Ng6
{[%clk 0:02:04.4]} 19. Rf1 {[%clk 0:00:29.9]} 19... Nh4 {[%clk 0:02:02.8]} 20.
Kh1 {[%clk 0:00:25.4]} 20... Qe8 {[%clk 0:01:57.3]} 21. Rg1 {[%clk 0:00:24]}
21... Qg6 {[%clk 0:01:55.5]} 22. Be1 {[%clk 0:00:22.1]} 22... g3 {[%clk
0:01:47.6]} 23. h3 {[%clk 0:00:20.8]} 23... Bh6 {[%clk 0:01:30.7]} 24. Bf1
{[%clk 0:00:20.1]} 24... Kh7 {[%clk 0:01:27.8]} 25. Ne2 {[%clk 0:00:17.9]} 25...
Rg8 {[%clk 0:01:27.6]} 26. cxd6 {[%clk 0:00:13.7]} 26... cxd6 {[%clk 0:01:27.1]}
27. Rc1 {[%clk 0:00:14.3]} 27... Ra7 {[%clk 0:01:18.8]} 28. Nc3 {[%clk
0:00:12.6]} 28... Bxh3 {[%clk 0:01:14.7]} 29. gxh3 {[%clk 0:00:12.5]} 29... g2+
{[%clk 0:01:15.1]} 30. Kh2 {[%clk 0:00:12.4]} 30... Qg3+ {[%clk 0:01:12]} 0-1

[Event "*** Titled Tuesday Blitz"]
[Site "Chess.com"]
[Date "2021.02.16"]
[Round "10"]
[White "DinaBelenkaya"]
[Black "abeljusto"]
[Result "1-0"]
[WhiteElo "2282"]
[BlackElo "2036"]
[TimeControl "180+1"]
[EndTime "11:57:54 PST"]
[Termination "DinaBelenkaya won on time"]

1. e4 {[%clk 0:03:00.9]} 1... Nf6 {[%clk 0:03:00.9]} 2. e5 {[%clk 0:02:59.9]}
2... Nd5 {[%clk 0:02:59]} 3. d4 {[%clk 0:03:00.8]} 3... d6 {[%clk 0:02:58.4]} 4.
c4 {[%clk 0:02:59]} 4... Nb6 {[%clk 0:02:57.8]} 5. exd6 {[%clk 0:02:48.7]} 5...
cxd6 {[%clk 0:02:58.7]} 6. Be3 {[%clk 0:02:48.4]} 6... g6 {[%clk 0:02:56.4]} 7.
Nc3 {[%clk 0:02:48.1]} 7... Bg7 {[%clk 0:02:52.1]} 8. Rc1 {[%clk 0:02:48.5]}
8... O-O {[%clk 0:02:51.2]} 9. b3 {[%clk 0:02:44.2]} 9... Bf5 {[%clk 0:02:50.3]}
10. Be2 {[%clk 0:02:37.9]} 10... e5 {[%clk 0:02:34.1]} 11. d5 {[%clk 0:02:36.9]}
11... Na6 {[%clk 0:02:14.6]} 12. Nf3 {[%clk 0:02:31.7]} 12... Nc5 {[%clk
0:02:05.2]} 13. O-O {[%clk 0:02:29]} 13... a5 {[%clk 0:01:58.8]} 14. Nb5 {[%clk
0:02:27.8]} 14... Qe7 {[%clk 0:01:51.7]} 15. a3 {[%clk 0:02:25.3]} 15... e4
{[%clk 0:01:47]} 16. Nfd4 {[%clk 0:02:23.8]} 16... Bd7 {[%clk 0:01:42.3]} 17.
Re1 {[%clk 0:02:22.3]} 17... Bxb5 {[%clk 0:01:34.4]} 18. Nxb5 {[%clk 0:02:21.4]}
18... f5 {[%clk 0:01:31.1]} 19. Bd4 {[%clk 0:02:19.5]} 19... Bh6 {[%clk
0:01:29.1]} 20. Rc3 {[%clk 0:02:17.4]} 20... Nbd7 {[%clk 0:01:23.9]} 21. Bf1
{[%clk 0:02:13.7]} 21... Ne5 {[%clk 0:01:22.4]} 22. f3 {[%clk 0:02:08.3]} 22...
exf3 {[%clk 0:01:18.5]} 23. Nxd6 {[%clk 0:02:07.9]} 23... fxg2 {[%clk
0:01:03.8]} 24. Bxg2 {[%clk 0:02:04.8]} 24... Qxd6 {[%clk 0:00:56.5]} 25. Bxe5
{[%clk 0:02:04.8]} 25... Qd7 {[%clk 0:00:50.5]} 26. d6 {[%clk 0:02:04.5]} 26...
Rae8 {[%clk 0:00:43.9]} 27. Qd5+ {[%clk 0:02:02.6]} 27... Ne6 {[%clk 0:00:42.8]}
28. Qxb7 {[%clk 0:02:00.8]} 28... Qxb7 {[%clk 0:00:37]} 29. Bxb7 {[%clk
0:02:01.7]} 29... Rd8 {[%clk 0:00:20.1]} 30. Bd5 {[%clk 0:02:00.4]} 30... Kf7
{[%clk 0:00:19.6]} 31. c5 {[%clk 0:01:55.3]} 31... Rfe8 {[%clk 0:00:13.9]} 32.
c6 {[%clk 0:01:53.9]} 32... Bd2 {[%clk 0:00:10.3]} 33. Rcc1 {[%clk 0:01:36.5]}
33... Bxe1 {[%clk 0:00:08.6]} 34. Rxe1 {[%clk 0:01:36.1]} 34... Kf8 {[%clk
0:00:06.9]} 35. d7 {[%clk 0:01:29.9]} 35... Re7 {[%clk 0:00:05.3]} 36. Bd6
{[%clk 0:01:27.8]} 1-0

[Event "*** Titled Tuesday Blitz"]
[Site "Chess.com"]
[Date "2021.02.16"]
[Round "10"]
[White "crazy_but_lazy"]
[Black "McCarthyStone"]
[Result "1-0"]
[WhiteElo "2499"]
[BlackElo "2375"]
[TimeControl "180+1"]
[EndTime "11:57:58 PST"]
[Termination "crazy_but_lazy won by resignation"]

1. e4 {[%clk 0:03:00.9]} 1... d6 {[%clk 0:02:57.8]} 2. d4 {[%clk 0:02:59.8]}
2... g6 {[%clk 0:02:58.4]} 3. Nc3 {[%clk 0:02:53.5]} 3... Bg7 {[%clk 0:02:58.9]}
4. Be3 {[%clk 0:02:54.2]} 4... a6 {[%clk 0:02:59]} 5. Bd3 {[%clk 0:02:52.7]}
5... b5 {[%clk 0:02:58.6]} 6. a4 {[%clk 0:02:52.6]} 6... b4 {[%clk 0:02:56.8]}
7. Nce2 {[%clk 0:02:53.3]} 7... Nd7 {[%clk 0:02:55.8]} 8. Nf3 {[%clk 0:02:53.6]}
8... Bb7 {[%clk 0:02:55.8]} 9. Ng3 {[%clk 0:02:52.9]} 9... h5 {[%clk 0:02:53.8]}
10. Qd2 {[%clk 0:02:50.9]} 10... h4 {[%clk 0:02:48.8]} 11. Ne2 {[%clk
0:02:49.7]} 11... h3 {[%clk 0:02:40.1]} 12. gxh3 {[%clk 0:02:45.7]} 12... Ngf6
{[%clk 0:02:35.5]} 13. Ng3 {[%clk 0:02:43.7]} 13... a5 {[%clk 0:02:28]} 14. h4
{[%clk 0:02:22.5]} 14... Rc8 {[%clk 0:02:27.3]} 15. c3 {[%clk 0:02:14.1]} 15...
c5 {[%clk 0:02:24.7]} 16. O-O {[%clk 0:01:59.9]} 16... Ng4 {[%clk 0:02:11.5]}
17. Bg5 {[%clk 0:01:55.8]} 17... Qb6 {[%clk 0:01:54.1]} 18. Bb5 {[%clk
0:01:42.6]} 18... Nf6 {[%clk 0:01:25.4]} 19. Rfe1 {[%clk 0:01:36.8]} 19... Kf8
{[%clk 0:01:19.3]} 20. Rad1 {[%clk 0:01:22]} 20... Kg8 {[%clk 0:00:56.5]} 21.
Qf4 {[%clk 0:01:18.4]} 21... Nf8 {[%clk 0:00:54.6]} 22. d5 {[%clk 0:01:14.1]}
22... Rd8 {[%clk 0:00:31.4]} 23. c4 {[%clk 0:01:08.9]} 23... Qc7 {[%clk
0:00:27.7]} 24. e5 {[%clk 0:01:06.8]} 24... dxe5 {[%clk 0:00:20.5]} 25. Nxe5
{[%clk 0:01:07.7]} 25... N8h7 {[%clk 0:00:15.6]} 26. Nxg6 {[%clk 0:01:02.5]}
26... fxg6 {[%clk 0:00:13.5]} 27. Qxc7 {[%clk 0:01:01.6]} 1-0

[Event "*** Titled Tuesday Blitz"]
[Site "Chess.com"]
[Date "2021.02.16"]
[Round "10"]
[White "LiemLe"]
[Black "Indianlad"]
[Result "1-0"]
[WhiteElo "3012"]
[BlackElo "2932"]
[TimeControl "180+1"]
[EndTime "11:58:01 PST"]
[Termination "LiemLe won by resignation"]

1. d4 {[%clk 0:03:00.9]} 1... Nf6 {[%clk 0:02:59.6]} 2. Nf3 {[%clk 0:03:01.1]}
2... d5 {[%clk 0:02:59.4]} 3. c4 {[%clk 0:03:01.4]} 3... e6 {[%clk 0:02:59.4]}
4. g3 {[%clk 0:03:01.4]} 4... Bb4+ {[%clk 0:02:55.1]} 5. Bd2 {[%clk 0:03:01.3]}
5... Bd6 {[%clk 0:02:55.2]} 6. Nc3 {[%clk 0:02:57]} 6... O-O {[%clk 0:02:54.5]}
7. Bg5 {[%clk 0:02:56.3]} 7... Be7 {[%clk 0:02:54.6]} 8. Qb3 {[%clk 0:02:48.3]}
8... c6 {[%clk 0:02:53.4]} 9. Bg2 {[%clk 0:02:47.4]} 9... Nbd7 {[%clk
0:02:52.9]} 10. O-O {[%clk 0:02:43.2]} 10... h6 {[%clk 0:02:52.1]} 11. Bf4
{[%clk 0:02:43.7]} 11... Nh5 {[%clk 0:02:51.6]} 12. Bd2 {[%clk 0:02:38.7]} 12...
Nhf6 {[%clk 0:02:51.4]} 13. Rac1 {[%clk 0:02:30.5]} 13... Nb6 {[%clk 0:02:41.7]}
14. cxd5 {[%clk 0:02:16.3]} 14... exd5 {[%clk 0:02:41.3]} 15. Bf4 {[%clk
0:02:15.6]} 15... Nh5 {[%clk 0:02:35.9]} 16. Ne5 {[%clk 0:02:08.6]} 16... Nxf4
{[%clk 0:02:33.1]} 17. gxf4 {[%clk 0:02:09.5]} 17... Bf5 {[%clk 0:02:07.9]} 18.
e3 {[%clk 0:01:53.4]} 18... f6 {[%clk 0:02:05.4]} 19. Nf3 {[%clk 0:01:50.9]}
19... Kh8 {[%clk 0:02:05.3]} 20. Nh4 {[%clk 0:01:47.6]} 20... Bh7 {[%clk
0:02:01.1]} 21. f5 {[%clk 0:01:47.7]} 21... Rb8 {[%clk 0:01:59.8]} 22. Qc2
{[%clk 0:01:44.4]} 22... Nc4 {[%clk 0:01:57]} 23. Kh1 {[%clk 0:01:41.1]} 23...
Bb4 {[%clk 0:01:54.7]} 24. Rg1 {[%clk 0:01:39.8]} 24... Nd6 {[%clk 0:01:54.1]}
25. Bf1 {[%clk 0:01:37.2]} 25... Bxc3 {[%clk 0:01:45.1]} 26. bxc3 {[%clk
0:01:38.1]} 26... Qe7 {[%clk 0:01:44.2]} 27. Bd3 {[%clk 0:01:38]} 27... Rbc8
{[%clk 0:01:44.7]} 28. Qe2 {[%clk 0:01:33.3]} 28... Ne4 {[%clk 0:01:38.3]} 29.
Rg4 {[%clk 0:01:32.4]} 29... Nd6 {[%clk 0:01:09.8]} 30. Rcg1 {[%clk 0:01:31.2]}
30... Rf7 {[%clk 0:01:10.3]} 31. Qf3 {[%clk 0:01:29.3]} 31... b5 {[%clk
0:01:07.4]} 32. Qf4 {[%clk 0:01:26.5]} 32... a5 {[%clk 0:01:06.1]} 33. Ng6+
{[%clk 0:01:11.2]} 33... Bxg6 {[%clk 0:01:05.9]} 34. fxg6 {[%clk 0:01:12.1]}
34... Rff8 {[%clk 0:01:04.3]} 35. Rh4 {[%clk 0:01:12.5]} 35... Kg8 {[%clk
0:00:58.4]} 36. Rxh6 {[%clk 0:01:12.4]} 36... gxh6 {[%clk 0:00:36.4]} 37. g7
{[%clk 0:01:13.3]} 37... Rf7 {[%clk 0:00:30.8]} 38. Qxh6 {[%clk 0:01:07.8]}
38... Rxg7 {[%clk 0:00:30.6]} 39. Qh7+ {[%clk 0:01:07.8]} 1-0

[Event "*** Titled Tuesday Blitz"]
[Site "Chess.com"]
[Date "2021.02.16"]
[Round "10"]
[White "Grimlock_Glasgow"]
[Black "The_filthy"]
[Result "1-0"]
[WhiteElo "2446"]
[BlackElo "2327"]
[TimeControl "180+1"]
[EndTime "11:58:01 PST"]
[Termination "Grimlock_Glasgow won by resignation"]

1. e4 {[%clk 0:03:00.9]} 1... e6 {[%clk 0:02:59.5]} 2. d4 {[%clk 0:02:59.5]}
2... d5 {[%clk 0:02:59.7]} 3. e5 {[%clk 0:03:00.2]} 3... Qd7 {[%clk 0:02:59.5]}
4. Nf3 {[%clk 0:02:51.2]} 4... b6 {[%clk 0:02:59.7]} 5. a4 {[%clk 0:02:42.9]}
5... Ba6 {[%clk 0:02:59.1]} 6. Bxa6 {[%clk 0:02:33.2]} 6... Nxa6 {[%clk
0:02:59.2]} 7. Qe2 {[%clk 0:02:33.1]} 7... Nb8 {[%clk 0:02:58.4]} 8. a5 {[%clk
0:02:26.7]} 8... b5 {[%clk 0:02:54.1]} 9. c3 {[%clk 0:02:23.3]} 9... Ne7 {[%clk
0:02:53.1]} 10. Nbd2 {[%clk 0:02:12.5]} 10... Ng6 {[%clk 0:02:51.5]} 11. b4
{[%clk 0:01:54.5]} 11... Be7 {[%clk 0:02:42.4]} 12. Nb3 {[%clk 0:01:53.3]} 12...
Na6 {[%clk 0:02:39.7]} 13. h4 {[%clk 0:01:52.1]} 13... h5 {[%clk 0:02:26.5]} 14.
Bg5 {[%clk 0:01:50]} 14... O-O-O {[%clk 0:02:19.6]} 15. Bxe7 {[%clk 0:01:47.8]}
15... Nxe7 {[%clk 0:02:19.7]} 16. Ng5 {[%clk 0:01:46.6]} 16... Rdf8 {[%clk
0:02:18.6]} 17. O-O-O {[%clk 0:01:44.3]} 17... c6 {[%clk 0:02:13.5]} 18. Kb2
{[%clk 0:01:42.6]} 18... Nf5 {[%clk 0:02:08.5]} 19. g3 {[%clk 0:01:38]} 19... f6
{[%clk 0:02:05.5]} 20. exf6 {[%clk 0:01:36.8]} 20... Rxf6 {[%clk 0:02:04.2]} 21.
Rde1 {[%clk 0:01:36.3]} 21... Nd6 {[%clk 0:01:59.4]} 22. Ka2 {[%clk 0:01:31]}
22... Nc4 {[%clk 0:01:53]} 23. f4 {[%clk 0:01:30.1]} 23... Re8 {[%clk
0:01:44.2]} 24. Qxh5 {[%clk 0:01:28.5]} 24... Re7 {[%clk 0:01:35.2]} 25. Re2
{[%clk 0:01:26.5]} 25... Qd6 {[%clk 0:01:27.2]} 26. Nc5 {[%clk 0:01:24.7]} 26...
Nxc5 {[%clk 0:01:27.3]} 27. dxc5 {[%clk 0:01:25]} 27... Qc7 {[%clk 0:01:22.7]}
28. Rhe1 {[%clk 0:01:12]} 28... Qd7 {[%clk 0:00:52]} 29. Qg4 {[%clk 0:01:03.7]}
29... d4 {[%clk 0:00:51.5]} 30. Rd1 {[%clk 0:00:49.9]} 30... d3 {[%clk
0:00:42.7]} 31. Ree1 {[%clk 0:00:49.9]} 31... Qd5 {[%clk 0:00:40.7]} 32. Qf3
{[%clk 0:00:49.5]} 32... Qd7 {[%clk 0:00:32.8]} 33. Rxd3 {[%clk 0:00:48.2]} 1-0